bitfinex-derivatives/quotes_ETHF0:USTF0_20241004
["timestamp","ask_amount","ask_price","bid_price","bid_amount"]
[1728046466580,4.2756,2392.7,2392.0,1.0469]
[1728046466779,0.41808,2392.5,2392.0,1.46505]
[1728046467083,1.0678,2392.7,2392.0,1.46505]
[1728046467386,0.4181,2392.4,2392.0,1.0469]
[1728046467979,0.41807,2392.5,2392.0,1.0469]
[1728046468186,1.0678,2392.7,2392.0,1.0469]
[1728046468487,0.41811,2392.3,2392.1,8.90300207]
[1728046468883,0.41811,2392.3,2392.0,1.0469]
[1728046469573,0.41811,2392.3,2392.0,1.46506]
[1728046469975,4.2756,2392.7,2392.0,1.0469]
[1728046470181,1.04517,2392.6,2392.0,1.0469]
[1728046470381,0.41812,2392.3,2392.0,1.0469]
[1728046470687,0.41811,2392.3,2392.0,1.0469]
[1728046471185,1.04517,2392.6,2392.0,1.0469]
[1728046471381,0.41812,2392.3,2392.0,1.46505]
[1728046471577,1.04517,2392.6,2392.0,1.0469]
[1728046471777,1.04517,2392.6,2391.9,3.2078]
[1728046472077,0.41816,2392.0,2391.9,3.2078]
[1728046472278,3.2078,2392.0,2391.2,3.2078]
[1728046472477,0.41824,2391.6,2391.2,3.62609]
[1728046472680,0.41822,2391.7,2391.3,0.41827]
[1728046472877,3.18755,2391.9,2391.3,0.41827]
[1728046473080,0.41822,2391.7,2391.3,0.41827]
[1728046473278,0.41824,2391.6,2391.3,0.41828]
[1728046473493,3.18755,2391.9,2391.3,0.41828]
[1728046473782,3.18755,2391.9,2391.2,3.2078]
[1728046474382,1.04549,2391.8,2391.2,3.2078]
[1728046474575,0.41828,2391.3,2391.2,3.2078]
[1728046475683,0.41826,2391.5,2391.2,3.62609]
[1728046475880,0.41826,2391.5,2391.2,3.2078]
[1728046476083,1.04549,2391.8,2391.2,3.2078]
[1728046476084,0.41827,2391.4,2391.2,3.2078]
[1728046476280,1.04549,2391.8,2391.2,3.2078]
[1728046476483,0.41828,2391.3,2391.2,3.2078]
[1728046477690,1.04549,2391.8,2391.2,3.2078]
[1728046477691,0.41827,2391.4,2391.2,3.2078]
[1728046477991,0.41827,2391.4,2391.2,3.6261]
[1728046478192,1.04549,2391.8,2391.2,3.6261]
[1728046478193,0.41825,2391.5,2391.2,3.6261]
[1728046478386,0.41827,2391.4,2391.2,3.6261]
[1728046478588,0.41827,2391.4,2391.2,3.2078]
[1728046478790,1.04554,2391.7,2391.1,1.0582]
[1728046478791,3.2078,2391.7,2391.1,1.0582]
[1728046478993,2.1421,2391.9,2390.6,3.2078]
[1728046478994,3.2078,2391.3,2390.6,3.2078]
[1728046479287,4.24867798,2391.6,2390.4,1.0397]
[1728046479288,0.41842,2390.5,2390.4,1.0397]
[1728046479692,0.41841,2390.6,2390.4,1.0397]
[1728046479883,1.04589,2391.0,2390.4,1.0397]
[1728046480089,1.04589,2391.0,2390.4,1.45812]
[1728046480285,0.41841,2390.6,2390.4,1.45814]
[1728046480488,1.04589,2391.0,2390.4,1.45814]
[1728046480893,6.45357,2391.2,2390.4,1.0397]
[1728046481085,0.41838,2390.8,2390.5,0.41842]
[1728046481283,1.04584,2391.0,2390.4,1.0397]
[1728046481591,0.41841,2390.6,2390.4,1.0397]
[1728046481790,1.0458,2391.1,2390.4,1.0397]
[1728046482094,0.41837,2390.9,2390.6,0.4184]
[1728046482280,2.2,2391.2,2390.5,3.62621]
[1728046482481,2.2,2391.2,2390.5,3.2078]
[1728046482482,0.41838,2390.8,2390.5,3.2078]
[1728046482700,0.41838,2390.8,2390.5,3.62621]
[1728046483187,0.41839,2390.7,2390.5,3.2078]
[1728046483395,0.41838,2390.8,2390.5,3.62622]
[1728046483690,0.41839,2390.7,2390.5,3.2078]
[1728046484287,1.46424,2390.9,2390.5,3.2078]
[1728046484487,0.4184,2390.7,2390.5,3.2078]
[1728046485088,5.4078,2391.2,2390.5,3.2078]
[1728046485292,1.04582,2391.1,2390.5,3.2078]
[1728046485491,1.0456,2391.6,2391.0,7.2278]
[1728046485703,3.2078,2392.1,2391.1,1.0345]
[1728046485704,0.4183,2391.2,2391.1,1.0345]
[1728046487801,0.17503804,2392.5,2391.1,5.2169]
[1728046487802,2.09056,2392.3,2391.1,5.2169]
[1728046487991,0.41828,2391.4,2391.1,1.0345]
[1728046488197,0.41825,2391.5,2391.1,1.0345]
[1728046488401,2.13675,2391.9,2391.1,1.0345]
[1728046488402,1.1385,2391.8,2391.1,1.0345]
[1728046488899,0.41829,2391.3,2391.1,1.0345]
[1728046489203,1.04558,2391.6,2391.1,1.0345]
[1728046489405,0.41826,2391.5,2391.1,1.0345]
[1728046489600,0.41827,2391.4,2391.1,1.0345]
[1728046490101,0.41828,2391.3,2391.1,1.0345]
[1728046490304,5.3918,2391.8,2391.1,1.0345]
[1728046490503,0.4183,2391.2,2391.1,1.0345]
[1728046490798,1.04565,2391.5,2391.0,3.2078]
[1728046490799,0.41832,2391.1,2391.0,3.2078]
[1728046490999,1.0817,2391.4,2390.7,4.3398]
[1728046491202,0.41834,2391.0,2390.7,4.3398]
[1728046491407,1.04571,2391.3,2390.7,4.3398]
[1728046491408,0.41836,2390.9,2390.7,4.3398]
[1728046492102,1.0868,2391.2,2390.7,4.3398]
[1728046492402,0.41833,2391.1,2390.7,4.3398]
[1728046492703,0.41833,2391.1,2390.7,8.3598]
[1728046493506,1.50511,2391.2,2390.7,8.3598]
[1728046493707,0.41832,2391.1,2390.7,8.77818]
[1728046494101,1.0868,2391.2,2390.7,8.3598]
[1728046494296,1.0817,2391.4,2391.0,3.2078]
[1728046494500,3.4153275,2392.0,2391.0,3.2078]
[1728046494501,1.1512,2391.7,2391.0,3.2078]
[1728046494707,0.41825,2391.5,2391.1,0.41831]
[1728046494907,1.56942,2391.7,2391.1,1.0463]
[1728046495111,1.0548,2391.9,2391.3,3.2078]
[1728046495306,0.41826,2391.4,2391.3,3.2078]
[1728046496506,1.04549,2391.8,2391.2,1.0601]
[1728046496710,0.41827,2391.4,2391.2,1.0601]
[1728046497709,0.41825,2391.5,2391.2,1.0601]
[1728046498202,0.41828,2391.3,2391.2,1.0601]
[1728046498510,0.41826,2391.5,2391.2,1.0601]
[1728046498705,1.0455,2391.8,2391.2,1.0601]
[1728046498909,2.206,2391.9,2391.3,3.2078]
[1728046498910,0.41822,2391.7,2391.3,3.2078]
[1728046499411,2.206,2391.9,2391.3,3.2078]
[1728046499610,3.25147,2391.9,2391.3,3.2078]
[1728046499819,0.41824,2391.6,2391.3,3.2078]
[1728046500108,0.41826,2391.5,2391.3,3.2078]
[1728046500304,0.41826,2391.5,2391.2,1.0601]
[1728046500305,0.41825,2391.5,2391.2,1.0601]
[1728046500504,0.41828,2391.4,2391.2,1.0601]
[1728046500711,1.04558,2391.6,2391.0,3.2078]
[1728046501009,3.2078,2391.7,2391.0,3.2078]
[1728046501010,0.41831,2391.2,2391.0,3.2078]
[1728046501613,1.1219,2391.3,2391.0,3.2078]
[1728046501809,1.54018,2391.3,2391.0,3.2078]
[1728046502107,1.112,2391.6,2391.0,3.2078]
[1728046502311,1.04555,2391.7,2391.0,3.2078]
[1728046502513,0.41826,2391.5,2391.0,3.62613]
[1728046502711,0.41827,2391.4,2391.0,3.2078]
[1728046502907,1.04555,2391.7,2391.0,3.2078]
[1728046503208,1.1219,2391.8,2391.3,0.41828]
[1728046503406,1.1219,2391.8,2391.4,1.1515]
[1728046503815,1.5401,2391.8,2391.4,1.56976]
[1728046504111,0.41822,2391.7,2391.4,1.1515]
[1728046504711,0.41822,2391.7,2391.3,3.2078]
[1728046504712,1.1219,2391.8,2391.3,3.2078]
[1728046504908,0.41826,2391.5,2391.1,4.02]
[1728046505207,0.41826,2391.5,2391.0,3.2078]
[1728046505412,0.41826,2391.5,2391.1,0.41831]
[1728046506308,0.41826,2391.5,2391.0,3.2078]
[1728046506506,0.41826,2391.5,2391.1,0.41831]
[1728046506707,0.41824,2391.6,2391.1,0.41832]
[1728046506906,0.41822,2391.7,2391.0,3.2078]
[1728046507208,1.5401,2391.8,2391.3,3.62608]
[1728046507510,1.1219,2391.8,2391.4,1.1294]
[1728046507818,0.41822,2391.7,2391.4,1.1294]
[1728046508015,1.54011,2391.8,2391.4,1.54766]
[1728046508316,0.41821,2391.7,2391.4,1.1294]
[1728046509314,1.54011,2391.8,2391.4,1.1294]
[1728046509508,1.54011,2391.8,2391.4,1.54766]
[1728046509816,0.41822,2391.7,2391.4,1.1294]
[1728046510613,1.54011,2391.8,2391.4,1.1294]
[1728046510914,1.1219,2391.8,2391.4,1.1294]
[1728046511108,1.56939,2391.9,2391.4,1.54765]
[1728046511310,1.1512,2391.9,2391.4,2.1997]
[1728046511610,1.0914,2392.2,2391.7,0.41821]
[1728046511611,0.41815,2392.1,2391.7,0.41821]
[1728046511817,1.0914,2392.2,2391.6,3.2078]
[1728046512019,0.41814,2392.1,2391.7,0.41821]
[1728046512205,1.0914,2392.2,2391.6,3.2078]
[1728046512206,2.13674,2392.2,2391.6,3.2078]
[1728046512521,1.11242128,2392.1,2391.4,2.1997]
[1728046512711,1.04536,2392.1,2391.4,1.1294]
[1728046512905,3.2748647,2392.0,2391.4,1.1294]
[1728046513115,7.2278,2391.7,2391.0,3.2078]
[1728046513318,2.29046726,2391.9,2390.7,3.2078]
[1728046513319,1.04571,2391.3,2390.7,3.2078]
[1728046513530,0.41835,2390.9,2390.6,1.0443]
[1728046513811,0.41832,2391.1,2390.7,0.41838]
[1728046514013,1.0739,2391.2,2390.9,0.41835]
[1728046514217,1.1424,2391.6,2391.0,0.41833]
[1728046514408,1.56065,2391.6,2391.1,0.41831]
[1728046514611,1.1424,2391.6,2391.1,0.41832]
[1728046514811,1.1424,2391.6,2391.0,1.058]
[1728046514812,1.1424,2391.6,2391.2,1.46259]
[1728046515024,1.56064,2391.6,2391.2,1.46259]
[1728046515207,1.0739,2391.7,2391.2,1.0443]
[1728046515407,1.0739,2391.7,2391.2,4.2521]
[1728046515817,1.0739,2391.7,2391.2,4.67038]
[1728046516017,1.0739,2391.7,2391.3,0.41828]
[1728046516317,1.1424,2392.0,2391.2,8.2721]
[1728046516526,1.56057,2392.0,2391.4,0.41826]
[1728046516710,0.41818,2391.9,2391.3,0.41827]
[1728046517215,1.1424,2392.0,2391.2,8.2721]
[1728046517416,1.56057,2392.0,2391.4,0.41826]
[1728046517613,1.56057,2392.0,2391.4,0.41825]
[1728046517809,1.56057,2392.0,2391.6,0.41822]
[1728046517810,1.1424,2392.0,2391.6,0.41822]
[1728046518219,1.1424,2392.0,2391.7,1.137]
[1728046520724,1.1198,2392.3,2391.7,1.137]
[1728046521021,2.16509,2392.3,2391.7,1.137]
[1728046521224,0.41816,2392.0,2391.7,1.137]
[1728046521518,0.41813,2392.2,2391.7,1.5552]
[1728046521918,1.53792,2392.3,2391.7,4.763]
[1728046522125,1.1198,2392.3,2391.7,4.3448]
[1728046522320,1.53792,2392.3,2391.8,0.41819]
[1728046522619,1.1198,2392.3,2391.8,0.41818]
[1728046523213,1.1198,2392.3,2392.0,3.62596]
[1728046523418,1.1065,2392.5,2392.0,3.2078]
[1728046523620,1.52458,2392.5,2392.0,3.2078]
[1728046523916,1.1065,2392.5,2392.1,0.41813]
[1728046524518,1.1065,2392.5,2392.2,1.1261]
[1728046525222,1.1065,2392.5,2392.3,0.41811]
[1728046525424,1.56223,2392.8,2392.2,1.1261]
[1728046525425,1.1442,2392.8,2392.4,3.2078]
[1728046526024,1.1442,2392.8,2392.5,0.41807]
[1728046526210,1.1442,2392.8,2392.6,0.41805]
[1728046526419,1.1442,2392.8,2392.4,3.2078]
[1728046526420,1.1442,2392.8,2392.4,3.62588]
[1728046526616,1.1442,2392.8,2392.5,0.41806]
[1728046527123,1.1442,2392.8,2392.4,3.62588]
[1728046527925,1.1442,2392.8,2392.5,0.41807]
[1728046528825,1.56222,2392.8,2392.4,3.62588]
[1728046529129,0.41807,2392.6,2392.4,3.2078]
[1728046529329,2.25,2392.8,2392.2,1.1261]
[1728046529519,0.41807,2392.5,2392.2,1.1261]
[1728046529716,0.41807,2392.6,2392.2,1.1261]
[1728046529920,0.4181,2392.4,2391.9,0.41817]
[1728046530123,1.56031,2392.3,2391.9,1.0596]
[1728046530320,1.1422,2392.3,2391.9,1.0596]
[1728046530831,0.41806,2392.6,2392.1,3.62594]
[1728046531022,1.56216,2392.6,2392.1,3.62594]
[1728046531224,1.1441,2392.6,2392.1,3.2078]
[1728046531527,1.56216,2392.6,2392.1,3.62594]
[1728046532226,1.1441,2392.6,2392.1,3.62594]
[1728046532628,1.56223,2392.8,2392.3,0.4181]
[1728046532823,2.2883,2392.8,2392.1,3.2078]
[1728046533026,0.41806,2392.6,2392.1,3.62594]
[1728046533225,0.41804,2392.7,2392.1,3.2078]
[1728046533429,2.2883,2392.8,2392.1,3.2078]
[1728046533721,2.2883,2392.8,2392.4,3.62588]
[1728046533919,2.2883,2392.8,2392.4,3.2078]
[1728046534120,2.2883,2392.8,2392.1,3.2078]
[1728046534326,0.41811,2392.4,2392.1,3.2078]
[1728046534529,1.49152,2392.3,2392.1,3.2078]
[1728046534734,1.0734,2392.3,2392.1,3.2078]
[1728046535125,1.0734,2392.3,2392.1,3.62593]
[1728046535322,3.2078,2392.6,2392.1,3.2078]
[1728046535625,0.41805,2392.6,2392.1,3.62594]
[1728046535935,1.0734,2392.7,2392.1,3.2078]
[1728046536123,0.41808,2392.5,2392.1,3.2078]
[1728046536435,0.41807,2392.5,2392.1,3.62594]
[1728046536821,0.41806,2392.6,2392.2,0.41812]
[1728046537129,1.0734,2392.7,2392.1,3.2078]
[1728046537321,1.04514,2392.6,2392.1,3.2078]
[1728046537524,0.4181,2392.4,2392.1,3.2078]
[1728046538030,0.41812,2392.3,2392.1,3.2078]
[1728046538425,0.41812,2392.2,2392.1,3.2078]
[1728046538629,1.1485,2392.2,2392.1,3.2078]
[1728046539228,9.41708,2392.8,2392.1,3.2078]
[1728046539425,0.41812,2392.2,2392.1,3.2078]
[1728046539828,0.41812,2392.2,2391.6,1.1292]
[1728046539829,0.41819,2391.9,2391.6,1.1292]
[1728046540035,0.41818,2391.9,2391.6,1.54742]
[1728046540335,2.1762,2392.1,2391.6,1.54742]
[1728046540527,2.1762,2392.1,2391.7,0.4182]
[1728046540528,2.59435,2392.1,2391.7,0.4182]
[1728046540731,2.1762,2392.1,2391.8,3.2078]
[1728046540930,2.1762,2392.1,2391.8,0.41818]
[1728046541229,0.4181,2392.4,2391.6,1.1292]
[1728046541429,0.4181,2392.4,2391.1,0.41831]
[1728046541430,0.41825,2391.5,2391.1,0.41831]
[1728046541736,4.25322,2392.0,2391.0,13.09252198]
[1728046541934,2.1762,2391.8,2391.0,18.15836198]
[1728046542231,0.41823,2391.6,2391.3,0.41828]
[1728046542428,0.41823,2391.7,2391.3,0.41828]
[1728046543026,0.41823,2391.6,2391.3,0.41828]
[1728046543232,0.41823,2391.6,2391.1,1.1103]
[1728046543233,2.1762,2391.8,2391.2,0.41829]
[1728046543441,2.1762,2391.8,2391.3,0.41828]
[1728046543729,0.41825,2391.5,2391.0,4.3331]
[1728046543933,0.41825,2391.5,2391.2,0.4183]
[1728046544133,3.22172,2391.8,2391.0,4.3331]
[1728046544335,2.5944,2391.8,2391.5,0.41824]
[1728046544830,2.1762,2391.8,2391.3,3.2078]
[1728046545032,2.1762,2391.8,2391.6,0.41822]
[1728046545225,2.1762,2391.8,2391.6,0.41823]
[1728046545226,2.5944,2391.8,2391.6,0.41823]
[1728046545428,2.1762,2391.8,2391.6,0.41823]
[1728046545835,2.1762,2391.8,2391.3,3.2078]
[1728046546141,8.27305,2392.4,2391.7,0.4182]
[1728046546332,0.41817,2392.0,2391.8,1.046]
[1728046546533,0.41818,2391.9,2391.8,1.046]
[1728046547338,2.09512,2392.2,2391.8,1.046]
[1728046547339,0.41817,2392.0,2391.8,1.046]
[1728046547935,0.41816,2392.0,2391.8,1.046]
[1728046548131,1.0498,2392.2,2391.8,1.046]
[1728046548132,0.41815,2392.1,2391.8,1.046]
[1728046548930,1.0498,2392.2,2391.8,1.046]
[1728046549235,0.41816,2392.1,2391.8,1.046]
[1728046549735,0.41816,2392.1,2391.8,1.46419]
[1728046550042,0.41816,2392.0,2391.8,1.046]
[1728046550432,0.41817,2392.0,2391.8,1.046]
[1728046550833,0.41818,2391.9,2391.8,1.046]
[1728046551027,0.4182,2391.8,2391.6,3.2078]
[1728046551226,1.04541,2392.0,2391.6,3.2078]
[1728046551227,0.41819,2391.9,2391.6,3.2078]
[1728046551433,1.0498,2392.2,2391.6,3.2078]
[1728046551631,0.4182,2391.8,2391.6,3.2078]
[1728046551932,1.0498,2392.2,2391.6,3.2078]
[1728046552135,1.0498,2392.2,2391.7,0.41821]
[1728046552136,0.41818,2392.0,2391.7,0.41821]
[1728046552731,4.02,2392.1,2391.6,3.2078]
[1728046552932,2.09514,2392.2,2391.6,3.2078]
[1728046552933,5.0698,2392.2,2391.6,3.2078]
[1728046553234,1.46794,2392.2,2391.9,0.41818]
[1728046553430,1.0445,2392.3,2391.7,1.04554]
[1728046553627,1.0445,2392.3,2392.0,0.41814]
[1728046553831,4.02,2392.2,2391.6,3.2078]
[1728046554034,0.41821,2391.8,2391.6,3.2078]
[1728046554234,0.41819,2391.9,2391.6,3.62602]
[1728046554436,1.0888,2392.0,2391.6,3.62602]
[1728046554636,1.50697,2392.0,2391.7,0.41821]
[1728046554841,1.50697,2392.0,2391.7,1.1078]
[1728046554842,0.41818,2391.9,2391.7,1.1078]
[1728046555139,1.0888,2392.0,2391.7,1.1078]
[1728046555340,0.41818,2391.9,2391.7,1.1078]
[1728046555735,1.0888,2392.0,2391.7,1.1078]
[1728046555933,0.41818,2391.9,2391.7,1.1078]
[1728046556436,1.04534,2392.2,2391.8,0.41819]
[1728046556437,0.41812,2392.2,2391.8,0.41819]
[1728046557030,0.41812,2392.2,2391.7,1.1078]
[1728046557234,0.41813,2392.2,2391.9,0.41817]
[1728046557539,2.1518,2392.3,2392.0,0.41815]
[1728046557734,2.56992,2392.3,2391.9,3.62597]
[1728046557934,2.56992,2392.3,2392.0,0.41816]
[1728046558240,2.1518,2392.3,2392.1,0.41814]
[1728046558440,2.1518,2392.3,2391.9,3.2078]
[1728046558441,0.41811,2392.3,2392.0,0.41815]
[1728046558637,0.41813,2392.2,2391.9,3.62597]
[1728046559139,7.17174,2392.6,2391.9,3.62597]
[1728046559334,0.41807,2392.5,2392.0,0.41815]
[1728046559638,7.17174,2392.6,2392.0,0.41815]
[1728046559639,0.4181,2392.4,2392.0,0.41815]
[1728046559938,0.41809,2392.4,2392.1,1.56014]
[1728046560133,0.41809,2392.5,2392.1,1.56013]
[1728046560338,2.52467,2392.6,2392.2,0.41811]
[1728046560636,1.45857,2392.6,2392.1,1.142]
[1728046560837,0.41809,2392.4,2392.1,1.142]
[1728046561044,0.41809,2392.4,2392.1,1.56014]
[1728046561543,1.0661,2392.5,2392.1,1.56014]
[1728046561743,1.48418,2392.5,2392.1,1.56014]
[1728046561936,0.4181,2392.4,2392.1,1.142]
[1728046562133,1.0661,2392.5,2392.1,1.142]
[1728046562333,0.41809,2392.4,2392.1,1.56014]
[1728046562531,0.41809,2392.4,2392.1,1.142]
[1728046562734,1.0661,2392.5,2392.1,1.142]
[1728046562735,1.48418,2392.5,2392.1,1.142]
[1728046562936,1.48418,2392.5,2392.1,1.56013]
[1728046563136,1.0661,2392.5,2392.2,0.41812]
[1728046563543,1.48417,2392.5,2392.1,1.56013]
[1728046563744,1.48417,2392.5,2392.1,1.142]
[1728046563945,1.0661,2392.5,2392.3,0.41811]
[1728046564247,0.41807,2392.5,2392.2,0.41812]
[1728046564441,1.0405,2392.6,2392.1,1.142]
[1728046564638,1.45856,2392.6,2392.3,0.41811]
[1728046564841,1.45856,2392.6,2392.3,0.4181]
[1728046565045,1.0741,2392.8,2392.1,1.142]
[1728046565239,1.0741,2392.8,2392.3,1.46339]
[1728046565545,1.0741,2392.8,2392.4,1.1212]
[1728046565740,1.0741,2392.8,2392.6,0.41805]
[1728046565937,1.0741,2392.8,2392.7,0.41804]
[1728046566142,1.0451,2392.7,2392.2,3.2078]
[1728046566334,1.0451,2392.7,2391.8,2.12847845]
[1728046566335,3.26,2392.6,2392.4,0.41808]
[1728046566536,3.26,2392.6,2392.1,1.0928]
[1728046566537,3.67805,2392.7,2392.2,3.2078]
[1728046566737,1.49213,2392.8,2392.6,0.41805]
[1728046566944,1.49213,2392.8,2392.2,4.2531]
[1728046566945,4.72701,2392.9,2392.3,1.1267]
[1728046567244,0.41802,2392.8,2392.4,0.41808]
[1728046567540,5.35403,2392.9,2392.3,1.5448]
[1728046567541,3.26,2392.7,2392.3,1.5448]
[1728046567843,3.67808,2392.5,2392.3,1.5448]
[1728046568051,0.41811,2392.3,2392.2,3.2078]
[1728046568348,3.67811,2392.3,2392.2,3.2078]
[1728046568749,3.26,2392.3,2392.2,3.2078]
[1728046568949,1.1183,2392.4,2392.2,3.2078]
[1728046569151,1.1183,2392.4,2392.2,3.62592]
[1728046569451,1.5364,2392.4,2392.2,3.2078]
[1728046570241,1.1183,2392.4,2392.2,3.2078]
[1728046570440,1.5364,2392.4,2392.2,3.2078]
[1728046571444,0.41811,2392.3,2392.2,3.2078]
[1728046571644,0.41811,2392.3,2392.1,1.51093]
[1728046571850,1.1183,2392.4,2392.1,1.0928]
[1728046572344,4.77403,2392.8,2392.5,0.41807]
[1728046572545,1.096,2392.8,2392.5,3.2078]
[1728046572754,1.096,2392.8,2392.6,0.41804]
[1728046573347,1.096,2392.8,2392.5,3.2078]
[1728046573538,1.096,2392.8,2392.6,0.41804]
[1728046573744,1.096,2392.8,2392.6,1.0631]
[1728046573938,1.096,2392.8,2392.7,0.41804]
[1728046574148,3.26,2393.4,2392.7,4.1792]
[1728046574350,3.26,2393.4,2393.0,0.41797]
[1728046574351,2.67342,2393.4,2393.0,0.41797]
[1728046574549,2.2555,2393.4,2393.1,1.0631]
[1728046574744,2.67343,2393.4,2393.1,1.0631]
[1728046574942,2.2555,2393.4,2393.1,1.0631]
[1728046575147,2.2555,2393.4,2393.1,4.2709]
[1728046575455,3.2078,2393.9,2393.1,4.2709]
[1728046575456,6.4678,2393.9,2393.1,4.2709]
[1728046575755,2.2555,2394.0,2393.6,0.41787]
[1728046575949,13.6638,2394.5,2393.8,0.41784]
[1728046576155,0.41781,2394.1,2393.7,4.2709]
[1728046576455,0.41781,2394.1,2393.7,4.68875]
[1728046576649,3.67778,2394.2,2393.8,0.41784]
[1728046577157,3.26,2394.2,2393.7,4.2709]
[1728046577363,0.41778,2394.2,2393.8,0.41784]
[1728046577656,1.1358,2394.4,2393.8,0.41784]
[1728046577858,0.41781,2394.1,2393.7,4.68875]
[1728046578159,5.1458,2394.4,2393.8,0.41784]
[1728046578456,5.1458,2394.4,2393.7,4.2709]
[1728046578457,0.4178,2394.1,2393.7,4.68875]
[1728046578759,0.41778,2394.2,2393.8,0.41784]
[1728046578959,4.01,2394.2,2393.7,1.0631]
[1728046579152,0.41783,2393.9,2393.5,0.41789]
[1728046579364,0.41785,2393.8,2393.4,1.48621]
[1728046579562,7.2178,2394.2,2393.4,1.0683]
[1728046579751,0.41782,2394.0,2393.6,0.41787]
[1728046580157,4.01,2394.1,2393.4,1.4862]
[1728046580460,0.41785,2393.8,2393.4,1.4862]
[1728046580657,1.1042,2393.9,2393.3,3.2078]
[1728046580856,1.1042,2393.9,2393.4,1.1099]
[1728046581162,1.52204,2393.9,2393.5,0.41789]
[1728046581356,1.1042,2393.9,2393.4,1.1099]
[1728046581553,1.1042,2393.9,2393.7,0.41785]
[1728046581750,7.63558,2394.2,2393.8,1.52775]
[1728046581951,3.2078,2395.0,2393.8,13.92445904]
[1728046582152,1.1065,2394.6,2393.8,4.3177]
[1728046582354,0.41768,2394.8,2394.4,0.41773]
[1728046582553,1.1042,2394.9,2394.1,3.2078]
[1728046582957,1.1042,2394.9,2394.1,4.25225]
[1728046583157,1.1042,2394.9,2394.4,3.2078]
[1728046583361,1.1042,2394.9,2394.5,1.0465]
[1728046583668,1.1065,2395.0,2394.8,0.41766]
[1728046583856,1.1065,2395.0,2394.7,0.41768]
[1728046584160,1.1065,2395.0,2394.5,2.1033]
[1728046584362,0.41765,2394.9,2394.5,2.1033]
[1728046584561,1.52415,2395.0,2394.7,0.41769]
[1728046584766,0.41769,2394.7,2394.5,2.1033]
[1728046585062,1.1065,2395.0,2394.5,2.1033]
[1728046585552,1.1065,2395.0,2394.7,0.41769]
[1728046585760,0.41767,2394.9,2394.5,2.1033]
[1728046586064,1.52414,2395.0,2394.7,0.41768]
[1728046586362,1.52414,2395.0,2394.5,2.1033]
[1728046586363,1.1065,2395.0,2394.5,2.1033]
[1728046586564,1.1065,2395.0,2394.8,0.41767]
[1728046586869,0.41763,2395.1,2394.8,0.41767]
[1728046587059,0.41761,2395.2,2394.9,0.41765]
[1728046587264,1.111,2395.3,2394.7,3.2078]
[1728046587565,1.111,2395.3,2395.0,0.41763]
[1728046587865,1.52859,2395.3,2395.0,0.41763]
[1728046588158,0.4176,2395.2,2395.0,0.41763]
[1728046588353,0.41762,2395.1,2394.9,0.41765]
[1728046589160,1.111,2395.3,2394.7,3.2078]
[1728046589358,1.111,2395.3,2394.5,2.1033]
[1728046589557,0.41768,2394.8,2394.5,2.1033]
[1728046590262,3.2078,2395.1,2394.5,2.1033]
[1728046590559,1.0441,2395.0,2394.5,2.1033]
[1728046590763,0.41771,2394.6,2394.2,0.41778]
[1728046591063,3.2078,2395.1,2394.2,0.41778]
[1728046591064,0.41767,2394.8,2394.4,0.41774]
[1728046591262,3.2078,2395.1,2394.2,1.0619]
[1728046591567,0.41766,2394.9,2394.4,3.2078]
[1728046591864,2.14185,2395.2,2394.4,3.2078]
[1728046592070,0.41765,2395.0,2394.6,0.41769]
[1728046592363,1.111,2395.3,2394.4,3.2078]
[1728046592560,0.41761,2395.2,2394.9,0.41764]
[1728046592759,0.41761,2395.2,2394.7,3.2078]
[1728046592760,0.41762,2395.1,2395.0,1.1357]
[1728046593162,1.111,2395.3,2394.8,1.53896]
[1728046593462,0.41765,2394.9,2394.8,1.1213]
[1728046593662,1.111,2395.3,2394.5,0.41771]
[1728046593663,0.41767,2394.8,2394.5,0.41771]
[1728046593860,0.41766,2394.9,2394.6,0.41769]
[1728046594059,1.111,2395.3,2394.4,5.4648]
[1728046594256,0.41772,2394.6,2394.4,1.1357]
[1728046594468,7.2178,2395.1,2394.4,1.1357]
[1728046594469,1.0441,2395.0,2394.4,1.1357]
[1728046594764,3.2725,2394.8,2394.4,1.1357]
[1728046595157,0.41771,2394.6,2394.4,1.55344]
[1728046595353,0.4177,2394.7,2394.4,1.1357]
[1728046595863,2.64598,2394.8,2394.5,0.41771]
[1728046596169,0.4177,2394.7,2394.4,1.1357]
[1728046596363,2.2283,2394.8,2394.4,1.1357]
[1728046597065,0.41771,2394.6,2394.4,1.1357]
[1728046597654,2.2283,2394.8,2394.1,3.2078]
[1728046597860,3.2078,2394.6,2394.1,3.2078]
[1728046598065,2.2283,2394.8,2393.6,3.2078]
[1728046598066,5.05445,2394.2,2393.6,3.2078]
[1728046598266,0.41786,2393.7,2393.6,3.2078]
[1728046598566,2.2441,2394.1,2393.5,1.1339]
[1728046598567,3.28861,2394.1,2393.5,1.1339]
[1728046598763,4.25233,2394.0,2393.5,1.1339]
[1728046599062,3.2078,2394.0,2393.3,3.2078]
[1728046599266,0.41785,2393.8,2393.0,1.1339]
[1728046599469,3.2078,2394.0,2392.8,3.2078]
[1728046599470,0.41799,2393.0,2392.8,3.2078]
[1728046599763,0.418,2392.9,2392.8,3.2078]
[1728046600061,1.04493,2393.1,2392.4,1.1339]
[1728046600262,3.2078,2393.2,2392.4,1.1339]